Cogmind - Beta 13 @@@ ROGUE MODE // 2024.05.22 @ 22:55:59 Player: Minty Result: Destroyed by G-67 Veteran with Plasma Rifle Performance ------------- Evolutions (7) 3500 Regions Visited (14) 2800 Robots Destroyed (136) 680 Value Destroyed (4708) 4708 Prototype IDs (35) 700 Alien Tech Used (0) 0 Bonus (1410) 1410 TOTAL SCORE: 13798 Bonus ------- High Alert Combat Kills 165 Follower Combat Kills 969 Entered DSFs 500 Aligned with FarCom 300 Friendly Fire -524 Cogmind --------- Core Integrity 0/1300 Matter 219/300 Energy 26/100 System Corruption 70% Temperature Cool (24) Movement Core (150) Ox2 Location -3/Research Parts ------- > --- POWER (2) -------- (None) > --- PROPULSION (4) --- (None) > --- UTILITY (11) ----- Improved Terrain Scan Processor Core Analyzer Core Analyzer > --- WEAPON (4) ------- Compact HERF Cannon > --- INVENTORY (5) ---- Experimental Heat Sink Stealth Drone Bay (2/2) Coil Gun Peak State ------------ > --- POWER ------------ Micro Fission Core Antimatter Reactor > --- PROPULSION ------- Armored Leg Myomer Leg Myomer Leg Myomer Leg > --- UTILITY ---------- Large Storage Unit High-capacity Matter Pod Advanced Signal Interpreter Advanced Targeting Computer Phase Shifter Improved Medium Armor Plating System Shield Stealth Drone Bay > --- WEAPON ----------- Wave Gun Gamma Bomb Array Force Lance Force Lance > --- INVENTORY -------- Advanced Heat Sink Improved Cooling System Improved Spread Laser Wave Gun Latent Energy Streamer Heavy Mass Driver [Rating: 109] Favorites ----------- Power Antimatter Reactor Engine Ion Engine Power Core Micro Fission Core Reactor Antimatter Reactor Propulsion Compact Wheel Treads Heavy Treads Leg Myomer Leg Wheel Compact Wheel Hover Unit Gravmag Array Flight Unit Nuclear Pulse Array Utility Advanced Targeting Computer Device Improved Shield Generator Storage Large Storage Unit Processor Advanced Targeting Computer Hackware Hacking Suite Protection Utility Shielding Weapon Shotgun Energy Gun Wave Gun Energy Cannon Latent Energy Streamer Ballistic Gun Shotgun Ballistic Cannon Heavy Mass Driver Launcher Gamma Bomb Array Impact Weapon Heavy Flail Piercing Weapon Force Lance Build | -11 -10 -10 -10 -9 -8 -7 -7 -7 -6 -6 -5 -4 -4 -3 ------- Run | Yrd Mat Min Exi Min Mat Fac Was Fac Fac DSF Fac Fac Ext Res Slots Evolved 14 | . . . . . 4 2 . . 2 . 2 2 . 2 Power 1 | . . . . . . . . . 1 . . . . . Propulsion 2 | . . . . . . . . . 1 . 1 . . . Utility 9 | . . . . . 3 2 . . . . 1 1 . 2 Weapon 2 | . . . . . 1 . . . . . . 1 . . Parts Attached 224 | . 28 12 1 12 27 2 19 22 5 12 11 6 35 32 Power 20 | . 3 2 . . 3 . 1 1 1 . 1 2 2 4 Engine 7 | . 3 1 . . 3 . . . . . . . . . Core 5 | . . 1 . . . . . . 1 . 1 1 1 . Reactor 8 | . . . . . . . 1 1 . . . 1 1 4 Propulsion 42 | . 11 2 . 1 2 . 4 . 2 1 3 1 9 6 Treads 11 | . 4 . . 1 . . 1 . 2 . 2 1 . . Leg 12 | . . . . . . . 2 . . . . . 5 5 Wheel 13 | . 7 2 . . 2 . . . . . . . 1 1 Hover 1 | . . . . . . . . . . 1 . . . . Flight 5 | . . . . . . . 1 . . . 1 . 3 . Utility 58 | . 1 3 . 3 4 2 2 12 2 4 3 1 12 9 Device 22 | . 1 . . 1 . 1 . 2 . 3 3 . 8 3 Storage 9 | . . 3 . 1 . . . 3 . . . . 1 1 Processor 12 | . . . . . 2 . . 5 . . . 1 . 4 Hackware 3 | . . . . . 2 . . . 1 . . . . . Protection 12 | . . . . 1 . 1 2 2 1 1 . . 3 1 Artifact . | . . . . . . . . . . . . . . . Weapon 104 | . 13 5 1 8 18 . 12 9 . 7 4 2 12 13 Energy Gun 23 | . 2 . . . 5 . 2 4 . 1 3 2 4 . Energy Cannon 14 | . . . 1 1 . . 1 1 . . . . 3 7 Ballistic Gun 32 | . 11 4 . 6 8 . 1 . . . . . . 2 Ballistic Cannon 15 | . . . . . . . 3 2 . 5 . . 1 4 Launcher 10 | . . 1 . 1 4 . 2 . . . . . 2 . Special Weapon . | . . . . . . . . . . . . . . . Impact Weapon 8 | . . . . . 1 . 3 2 . 1 1 . . . Slashing Weapon . | . . . . . . . . . . . . . . . Piercing Weapon 2 | . . . . . . . . . . . . . 2 . Special Melee Weapon . | . . . . . . . . . . . . . . . Unidentified Prototypes 11 | . . . . . 4 . 2 1 . 1 . . 1 2 Corrupted Parts 9 | . 1 . . . . . . . . . . . 2 6 System Corruption 68 | . 1 . . . . . . . . . . . 13 54 Parts Lost 63 | . 2 1 . 2 2 . 5 1 . 10 4 . 20 16 Power 8 | . . . . 1 . . 1 . . 2 . . 2 2 Propulsion 20 | . 1 1 . 1 1 . 1 . . 2 2 . 7 4 Utility 21 | . 1 . . . . . 1 1 . 4 1 . 8 5 Weapon 14 | . . . . . 1 . 2 . . 2 1 . 3 5 Highest Loss Streak 18 | . 1 1 . 1 1 . 5 1 . 4 4 . 18 7 To Critical Strikes 3 | . . . . . . . . . . . . . 2 1 Average Slot Usage (%) 77 | . 97 90 71 96 98 99 65 72 92 51 56 42 78 34 Engine 3 | . 14 3 . . 9 7 2 . . . . . . . Core 2 | . . 10 14 12 . . . . 5 1 4 4 4 . Reactor 2 | . . . . . . . 2 6 6 . . 2 4 . Treads 4 | . 6 . . 6 . . 3 7 13 4 9 5 1 . Leg 2 | . 3 . . . . . 1 . . . . . 13 2 Wheel 7 | . 17 24 28 20 17 15 4 . . . . . . 2 Device 4 | . 12 . . 1 . 6 1 3 13 2 9 . 8 2 Storage 10 | . 14 23 28 21 9 7 1 8 13 11 5 5 8 2 Processor 9 | . . . . . 8 7 7 17 12 6 5 8 6 13 Hackware 4 | . . . . . 18 15 8 . 1 6 5 5 5 3 Protection 5 | . . . . 5 9 15 12 8 5 3 . . 6 . Energy Gun 6 | . 9 . . . 10 7 4 6 13 . 8 4 8 . Ballistic Gun 6 | . 18 27 . 26 12 7 1 . . . . . . . Ballistic Cannon 1 | . . . . . . . 2 3 . 4 . . . 1 Impact Weapon 2 | . . . . . 1 7 3 6 6 4 . . . . Naked Turns . | . . . . . . . . . . . . . . . Heaviest Build 88 | 14 17 25 19 32 32 38 86 87 76 88 41 46 87 35 Greatest Support 91 | 20 26 32 32 32 32 32 70 70 90 90 60 30 91 50 Greatest Overweight (x) 7 | . 5 1 . 1 1 1 1 1 . 7 1 1 2 3 Average Overweight (x) . | . . . . . . 1 . . . . . . . . Largest Inventory Capacity 15 | . 8 10 10 10 10 10 10 15 15 15 15 15 15 5 Average Capacity 10 | . 8 8 10 10 10 10 6 9 15 15 15 15 14 5 Most Carried 15 | . 8 10 10 10 10 10 10 15 15 15 15 13 15 5 Average Carried 8 | . 7 8 9 9 9 9 5 6 14 13 11 11 11 4 Final Capacity 15 | 8 8 10 10 10 10 10 5 15 15 15 15 15 5 5 Final Carried 15 | 6 8 10 10 10 10 10 5 15 14 15 14 12 5 4 Class Distribution -------------------- 75% | Mutant 8% | Scavenger-Skirmisher 6% | Scavenger-Mutant 4% | Tank 3% | Hacker-Skirmisher Dominant Class ---------------- Mutant | -10/Materials Mutant | -10/Mines Mutant | -10/Exiles Mutant | -9/Mines Scavenger-Skirmisher | -8/Materials Scavenger-Mutant | -7/Factory Scavenger-Mutant | -7/Waste Mutant | -7/Factory Mutant | -6/Factory Mutant | -6/DSF Mutant | -5/Factory Mutant | -4/Factory Mutant | -4/Extension Mutant | -3/Research Resources | -11 -10 -10 -10 -9 -8 -7 -7 -7 -6 -6 -5 -4 -4 -3 ----------- Run | Yrd Mat Min Exi Min Mat Fac Was Fac Fac DSF Fac Fac Ext Res Matter Collected 4900 | 200 788 418 . 184 672 20 288 538 . 761 45 . 547 439 Remotely 309 | . . . . . . . . . . . . . . 309 Salvage Created 5688 | . 709 140 . 161 1234 57 465 840 . 300 45 . 908 829 Parts 257 | . 47 11 . 12 63 1 9 41 . 9 . . 40 24 Haulers Intercepted 6 | . 1 . . . 3 . . 2 . . . . . . Recyclers Shooed 4 | . . 2 . . 1 . . . . . . . 1 . Parts Field Recycled . | . . . . . . . . . . . . . . . Retrieved Matter . | . . . . . . . . . . . . . . . Parts Self-Destructed . | . . . . . . . . . . . . . . . Prevented . | . . . . . . . . . . . . . . . Kills | -11 -10 -10 -10 -9 -8 -7 -7 -7 -6 -6 -5 -4 -4 -3 ------- Run | Yrd Mat Min Exi Min Mat Fac Was Fac Fac DSF Fac Fac Ext Res Combat Hostiles Destroyed 101 | . 14 5 . 5 23 . 2 20 . 9 1 . 10 12 Melee 4 | . . . . . 1 . . 2 . . . . 1 . Guns 32 | . 14 3 . 3 7 . . 1 . . 1 . 3 . Cannons 23 | . . . . . . . . 11 . 7 . . 1 4 AOE 28 | . . 2 . 2 14 . 2 2 . . . . 3 3 Classes Destroyed 18 | . 8 1 . 1 1 . 1 3 . 2 . . 1 . Worker 11 | . 2 . . . 3 . . 6 . . . . . . Builder 6 | . 2 . . . 1 . . 1 . . . . 2 . Tunneler 2 | . 1 . . 1 . . . . . . . . . . Hauler 6 | . 1 . . . 3 . . 2 . . . . . . Recycler 6 | . . 1 . . 3 1 . . . . . . 1 . Operator 2 | . 2 . . . . . . . . . . . . . Watcher 3 | . 1 . . . 1 . . 1 . . . . . . Swarmer 25 | . 3 3 . 3 6 . . 5 . 2 . . 3 . Grunt 43 | . 11 2 . . 10 . . 5 . 4 . . 1 10 Duelist 1 | . . . . . . . . 1 . . . . . . Sentry 11 | . . . . 2 5 . . 1 . . . . 2 1 Specialist 3 | . . . . . . . . . . 2 1 . . . Hunter 3 | . . . . . 2 . . . . . . . . 1 Programmer 7 | . . . . . . . . 5 . . . . 2 . Heavy 1 | . . . . . . . . . . 1 . . . . Behemoth 1 | . . . . . . . . . . . . . 1 . Compactor 2 | . . . . . . . 2 . . . . . . . Assembled 3 | . . . . . . . . 3 . . . . . . Butcher 1 | . . . . . . . . . . . . . 1 . Guerrilla 2 | . . . . . . . . . . . . . 2 . Best Kill Streak 8 | . 3 3 . 3 7 1 1 8 . 4 1 . 6 5 Combat Bots Only 5 | . 3 3 . 3 4 . 1 4 . 4 1 . 5 5 Max Kills in Single Turn 3 | . 2 2 . 3 3 1 1 3 . 1 1 . 2 2 Gunslinging 1 | . 1 . . . . . . . . . . . . . Exploded 3 | . . 2 . 2 3 . 1 2 . . . . 2 2 Melee 1 | . . . . . 1 . . 1 . . . . 1 . Uniques/NPCs Destroyed . | . . . . . . . . . . . . . . . Combat | -11 -10 -10 -10 -9 -8 -7 -7 -7 -6 -6 -5 -4 -4 -3 -------- Run | Yrd Mat Min Exi Min Mat Fac Was Fac Fac DSF Fac Fac Ext Res Hostile Shots Fired 1030 | . 55 32 . 20 58 . 4 140 . 190 87 . 167 277 Missed 297 | . 12 12 . 11 15 . . 34 . 56 24 . 42 91 Damage Taken 13596 | . 546 245 . 166 699 . 242 1567 . 2434 1214 . 3235 3248 Core 3475 | . 117 86 . 28 181 . 204 39 . 464 288 . 759 1309 Absorbed by Shields 371 | . . . . . . . . 92 . 279 . . . . Reduced by Siege Mode 9 | . . . . . . . . 9 . . . . . . Redirected to Shielding 431 | . . . . . 7 . . 118 . . . . 204 102 Ignored by Resistances 280 | . . . . . . . . 280 . . . . . . Regen/Repaired (Parts) 380 | . 39 . . . . . 247 94 . . . . . . Core Remaining (%) 55 | 100 . . . 7 67 . . 65 . 45 71 . 34 . Volleys Fired 301 | . 52 21 . 9 40 . 9 45 . 41 3 6 36 39 Largest 4 | . 2 2 . 2 3 . 3 2 . 1 2 1 4 2 Hottest 318 | . 80 46 . 60 123 . 106 144 . 75 138 81 318 159 Shots Fired 519 | . 104 37 . 19 99 . 23 49 . 41 6 6 86 49 Gun 354 | . 104 31 . 17 83 . 13 11 . 2 6 6 73 8 Cannon 128 | . . . . 1 . . . 38 . 39 . . 9 41 Launcher 37 | . . 6 . 1 16 . 10 . . . . . 4 . Special . | . . . . . . . . . . . . . . . Kinetic 284 | . 66 31 . 17 46 . 9 36 . 39 . . 6 34 Thermal 96 | . . . . . . . . 11 . . 6 6 73 . Explosive 33 | . . 6 . 1 16 . 10 . . . . . . . Electromagnetic 106 | . 38 . . 1 37 . 4 2 . 2 . . 7 15 Robot Hit Streak 16 | . 7 8 . 4 11 . 9 8 . 8 6 2 15 16 Robot Miss Streak 10 | . 5 10 . 5 6 . 4 5 . 3 . 2 5 4 Penetration Max . | . . . . . . . . . . . . . . . Secondary Targets 5 | . 3 1 . . . . . . . . . . 1 . Max Gunslinging Chain 1 | . 1 1 . . . . . . . . . . 1 . Shots Hit Robots 375 | . 62 23 . 11 73 1 17 46 . 36 8 3 60 35 Core Hits 250 | . 35 12 . 9 58 . 9 31 . 10 3 1 47 35 Critical Kills . | . . . . . . . . . . . . . . . Critical Parts Destroyed 9 | . 1 . . . 2 1 . 4 . 1 . . . . Critical Strikes 21 | . 1 . . . 2 1 . 10 . 4 . . 1 2 Burn 1 | . . . . . . . . 1 . . . . . . Destroy 2 | . 1 . . . 1 . . . . . . . . . Blast 10 | . . . . . . . . 5 . 3 . . . 2 Smash 7 | . . . . . 1 1 . 4 . 1 . . . . Impale 1 | . . . . . . . . . . . . . 1 . Melee Attacks 60 | . . . . . 3 6 1 20 . 13 6 . 11 . Impact 49 | . . . . . 3 6 1 20 . 13 6 . . . Slashing . | . . . . . . . . . . . . . . . Piercing 11 | . . . . . . . . . . . . . 11 . Sneak Attacks 7 | . . . . . 1 1 . 3 . . 1 . 1 . Combat Hostiles 2 | . . . . . 1 . . . . . 1 . . . Follow-up Attacks . | . . . . . . . . . . . . . . . Damage Inflicted 16608 | . 934 498 . 284 2740 85 1510 4108 . 1276 290 72 2657 2154 Guns 4266 | . 932 316 . 150 1087 . 98 165 . 18 99 72 1238 91 Cannons 4123 | . . . . 7 . . . 1979 . 889 . . 214 1034 Explosions 6144 | . . 182 . 127 1486 . 1350 1104 . . . . 895 1000 Melee 1956 | . . . . . 167 85 62 855 . 358 191 . 238 . Ramming 119 | . 2 . . . . . . 5 . 11 . . 72 29 Kinetic 5583 | . 668 316 . 150 462 . 90 1969 . 889 . . 202 837 Thermal 1857 | . . . . . 167 . . 165 . . 99 72 1354 . Explosive 2990 | . . 182 . 61 1319 . 1350 78 . . . . . . Electromagnetic 4103 | . 264 . . 73 625 . 8 1036 . 18 . . 791 1288 Impact 1718 | . . . . . 167 85 62 855 . 358 191 . . . Slashing . | . . . . . . . . . . . . . . . Piercing 238 | . . . . . . . . . . . . . 238 . Highest Corruption 70 | . 2 2 2 3 . . . 7 1 1 . . 25 70 Average Corruption 5 | . 1 2 2 2 . . . 4 1 1 . . 6 27 Corruption Purged . | . . . . . . . . . . . . . . . Corruption Blocked . | . . . . . . . . . . . . . . . Effects 120 | . 13 7 5 7 . . . 37 . 3 . . 24 24 Message Errors 32 | . 3 1 1 2 . . . 10 . 2 . . 8 5 Matter Fused 28 | . 3 . . 2 . . . 9 . . . . 7 7 Heat Flow Errors 10 | . 2 1 2 . . . . 3 . . . . 2 . Energy Discharges 13 | . . . 1 . . . . 7 . . . . 3 2 Parts Rejected 3 | . . . . . . . . 1 . 1 . . . 1 Parts Fused 3 | . . 2 . 1 . . . . . . . . . . Data Loss (minor) 12 | . 4 . 1 . . . . 4 . . . . 2 1 Data Loss (major) 5 | . 1 2 . . . . . . . . . . 1 1 Misfires 4 | . . 1 . 2 . . . 1 . . . . . . Alerts 3 | . . . . . . . . 2 . . . . . 1 Misdirections 5 | . . . . . . . . . . . . . . 5 Weapon Failures 2 | . . . . . . . . . . . . . 1 1 Overload Shots . | . . . . . . . . . . . . . . . Overflow Damage 930 | . . . . 2 184 85 11 540 . 71 20 . 17 . Projectiles 169 | . . . . . . . . 155 . 14 . . . . Explosions 85 | . . . . 2 65 . 11 . . . . . 7 . Melee 676 | . . . . . 119 85 . 385 . 57 20 . 10 . Knockbacks 26 | . . . . . 1 . . 7 . 13 . . . 5 Impact 4 | . . . . . 1 . . 1 . 2 . . . . Kinetic 21 | . . . . . . . . 5 . 11 . . . 5 Secondary 1 | . . . . . . . . 1 . . . . . . Self-Inflicted Damage 452 | . 1 47 . 39 89 . 38 92 . 5 . . 129 12 Shots 15 | . . 2 . 1 2 . 1 2 . . . . 7 . Rammed 13 | . 1 . . . . . . 1 . 1 . . 1 9 Targets Rammed 15 | . 1 . . . . . . 1 . 1 . . 3 9 Kicked 2 | . . . . . . . . . . . . . 2 . Crushed . | . . . . . . . . . . . . . . . Highest Temperature 478 | . 300 229 203 24 146 . 27 478 . 8 22 226 254 68 Average Temperature 90 | . 107 91 100 7 34 . 12 117 . 5 22 109 92 22 Received Heat Transfer 2550 | . 339 69 . 36 216 . . 340 . 351 360 . 373 466 Effects 10 | . 1 . . . . . . 6 . . . . 3 . Shutdowns 1 | . . . . . . . . 1 . . . . . . Energy Bleed 3 | . 1 . . . . . . 1 . . . . 1 . Interference 4 | . . . . . . . . 2 . . . . 2 . Damage (major) 2 | . . . . . . . . 2 . . . . . . Siege Activations 1 | . . . . . . . . 1 . . . . . . Total Turns 22 | . . . . . . . . 22 . . . . . . Longest Duration 22 | . . . . . . . . 22 . . . . . . Robots Corrupted 6 | . . . . . . . . 2 . . . . . 4 Combat Hostiles 6 | . . . . . . . . 2 . . . . . 4 Parts Fried 40 | . 2 . . . 4 2 . 9 . 3 . . 2 18 Impact Corruptions 20 | . . . . . 3 1 . 10 . 4 1 . 1 . Robots Melted 2 | . . . . . . . . . . . . . 2 . Combat Hostiles 2 | . . . . . . . . . . . . . 2 . Parts Melted 7 | . . . . . . . . 1 . . . . 6 . Heat Transferred 2651 | . . . . . 200 . . 299 . . 185 111 1856 . Parts Sabotaged . | . . . . . . . . . . . . . . . Parts Stolen . | . . . . . . . . . . . . . . . Parts Stripped . | . . . . . . . . . . . . . . . Power Chain Reactions 4 | . . . . . 2 . . . . . . . . 2 Latent Energy Used 1188 | . . . . 58 . . . 379 . . . . 236 515 LE Corruption 21 | . . . . 1 . . . 6 . . . . 5 9 Alert | -11 -10 -10 -10 -9 -8 -7 -7 -7 -6 -6 -5 -4 -4 -3 ------- Run | Yrd Mat Min Exi Min Mat Fac Was Fac Fac DSF Fac Fac Ext Res Peak Influence 721 | . 155 235 . 133 557 165 91 721 255 419 229 117 333 395 Initial 241 | . . 34 . . 51 156 57 . 241 178 219 102 56 46 Average 211 | . 85 196 . 43 141 160 55 390 243 248 219 103 159 184 Maximum Alert Level 3 | . . 1 . . 2 . . 3 1 2 1 . 1 1 Low Security (%) 58 | . 100 31 . 100 72 100 100 23 . 39 . 100 73 68 Level 1 24 | . . 68 . . 13 . . 23 100 53 100 . 26 31 Level 2 13 | . . . . . 13 . . 39 . 7 . . . . Level 3 3 | . . . . . . . . 12 . . . . . . Level 4 . | . . . . . . . . . . . . . . . Level 5 . | . . . . . . . . . . . . . . . High Security . | . . . . . . . . . . . . . . . Max Security . | . . . . . . . . . . . . . . . Sterilizations 1 | . . . . . . . . . . 1 . . . . Squads Dispatched 32 | . 3 . . . 4 . . 12 1 2 1 . 2 7 Investigation 14 | . 2 . . . 3 . . 3 1 . . . 1 4 Extermination 4 | . . . . . . . . 4 . . . . . . Reinforcement 10 | . 1 . . . 1 . . 1 . 2 1 . 1 3 Assault 1 | . . . . . . . . 1 . . . . . . Garrison 3 | . . . . . . . . 3 . . . . . . Intercept . | . . . . . . . . . . . . . . . Searches Triggered . | . . . . . . . . . . . . . . . Construction Impeded 3 | . . . . . 1 . . 1 . . . . . 1 Haulers Reinforced 1 | . . . . . . . . . . . . . . 1 Active Scanning Responses . | . . . . . . . . . . . . . . . Cargo Convoy Interrupts . | . . . . . . . . . . . . . . . Stealth | -11 -10 -10 -10 -9 -8 -7 -7 -7 -6 -6 -5 -4 -4 -3 --------- Run | Yrd Mat Min Exi Min Mat Fac Was Fac Fac DSF Fac Fac Ext Res Distress Signals 11 | . 1 . . . 3 . . 1 . . 1 . 3 2 Communications Jammed . | . . . . . . . . . . . . . . . Distress Signals . | . . . . . . . . . . . . . . . Times Spotted 204 | . 23 5 . 6 26 . 7 54 . 22 4 2 25 30 Peak Tracking Total 11 | . 4 3 . 3 5 . 4 7 . 7 3 1 9 11 Tactical Retreats 13 | . . . . 1 . . 2 1 . 4 . . . 5 Traps | -11 -10 -10 -10 -9 -8 -7 -7 -7 -6 -6 -5 -4 -4 -3 ------- Run | Yrd Mat Min Exi Min Mat Fac Was Fac Fac DSF Fac Fac Ext Res Traps Triggered 16 | . 6 . . . 1 1 . 4 . 2 . . 1 1 Indirectly . | . . . . . . . . . . . . . . . Trap Hack Attempts . | . . . . . . . . . . . . . . . Triggered . | . . . . . . . . . . . . . . . Disarmed 5 | . . . . . 3 . . 2 . . . . . . Reprogrammed 2 | . . . . . 2 . . . . . . . . . Reused . | . . . . . . . . . . . . . . . Traps Extracted . | . . . . . . . . . . . . . . . Installed . | . . . . . . . . . . . . . . . Triggered 2 | . . . . . . . . . . 1 . . . 1 Machines | -11 -10 -10 -10 -9 -8 -7 -7 -7 -6 -6 -5 -4 -4 -3 ---------- Run | Yrd Mat Min Exi Min Mat Fac Was Fac Fac DSF Fac Fac Ext Res Machines Disabled 19 | . . 4 . . 5 . . 4 . . . . 6 . Max in Single Turn 3 | . . 2 . . 2 . . 3 . . . . 3 . Garrison Access 2 | . . . . . . 1 . 1 . . . . . . Energy Cycler 2 | . . . . . . . . . . . . . 2 . Machines Repaired . | . . . . . . . . . . . . . . . Machines Dismantled . | . . . . . . . . . . . . . . . Machines Sabotaged . | . . . . . . . . . . . . . . . Overloaded Fab Kills 5 | . . . . . . . . . . . . . . 5 Hacking | -11 -10 -10 -10 -9 -8 -7 -7 -7 -6 -6 -5 -4 -4 -3 --------- Run | Yrd Mat Min Exi Min Mat Fac Was Fac Fac DSF Fac Fac Ext Res Machines Accessed 40 | . 8 . 2 . 6 3 . 8 3 . . 1 5 4 Terminals 26 | . 6 . . . 5 1 . 5 2 . . 1 4 2 Fabricators 4 | . . . . . . 1 . 1 . . . . . 2 Repair Stations 1 | . 1 . . . . . . . . . . . . . Recycling Units 4 | . 1 . . . 1 . . . 1 . . . 1 . Scanalyzers . | . . . . . . . . . . . . . . . Garrison Access 3 | . . . . . . 1 . 2 . . . . . . Total Hacks 113 | . 30 . 2 . 21 11 . 22 7 . . 2 11 7 Successful 56 | . 13 . 2 . 13 8 . 9 4 . . 1 5 1 Failed 57 | . 17 . . . 8 3 . 13 3 . . 1 6 6 Catastrophic 13 | . 2 . . . . . . 4 1 . . . 3 3 Database Lockouts . | . . . . . . . . . . . . . . . Manual 35 | . 10 . 1 . 6 4 . 8 2 . . . . 4 Terminals 78 | . 21 . . . 19 5 . 16 4 . . 2 8 3 Fabricators 9 | . . . . . . 4 . 1 . . . . . 4 Repair Stations 4 | . 4 . . . . . . . . . . . . . Recycling Units 13 | . 5 . . . 2 . . . 3 . . . 3 . Scanalyzers . | . . . . . . . . . . . . . . . Garrison Access 7 | . . . . . . 2 . 5 . . . . . . Terminal Hacks 32 | . 6 . 2 . 10 3 . 6 1 . . 1 3 . Record 1 | . . . 1 . . . . . . . . . . . Robot Analysis 1 | . 1 . . . . . . . . . . . . . Prototype ID Bank 1 | . . . . . 1 . . . . . . . . . Open Door 4 | . . . . . . . . . . . . 1 3 . Open DSF 1 | . . . . . . . . . 1 . . . . . Branch Access Points 2 | . 1 . . . 1 . . . . . . . . . Emergency Access Points 1 | . . . . . . 1 . . . . . . . . Fabricator Index 1 | . . . . . . 1 . . . . . . . . Repair Station Index 1 | . . . . . . . . 1 . . . . . . Garrison Index 1 | . . . . . . . . 1 . . . . . . Alert Level 6 | . 1 . . . 2 1 . 2 . . . . . . Unreport Threat 5 | . 2 . . . 2 . . 1 . . . . . . Locate Traps 2 | . 1 . . . 1 . . . . . . . . . Disarm Traps 2 | . . . . . 1 . . 1 . . . . . . Reprogram Traps 1 | . . . . . 1 . . . . . . . . . Transport Status 1 | . . . . . 1 . . . . . . . . . Derelict Proto ID Bank 1 | . . . 1 . . . . . . . . . . . Fabricator Hacks 3 | . . . . . . 2 . 1 . . . . . . Network Status 2 | . . . . . . 1 . 1 . . . . . . Build 1 | . . . . . . 1 . . . . . . . . Repair Station Hacks 3 | . 3 . . . . . . . . . . . . . Scan Component 2 | . 2 . . . . . . . . . . . . . Repair 1 | . 1 . . . . . . . . . . . . . Recycling Unit Hacks 7 | . 1 . . . 2 . . . 2 . . . 2 . Report Inventory 4 | . 1 . . . 1 . . . 1 . . . 1 . Retrieve Components 3 | . . . . . 1 . . . 1 . . . 1 . Scanalyzer . | . . . . . . . . . . . . . . . Garrison Access Hacks 2 | . . . . . . 1 . 1 . . . . . . Seal Access 2 | . . . . . . 1 . 1 . . . . . . Unauthorized Hacks 9 | . 3 . . . 1 2 . 1 1 . . . . 1 Terminals 7 | . 3 . . . 1 1 . 1 1 . . . . . Assimilate 1 | . 1 . . . . . . . . . . . . . Botnet 4 | . . . . . 1 1 . 1 1 . . . . . Operators 1 | . 1 . . . . . . . . . . . . . Sabotage 1 | . 1 . . . . . . . . . . . . . Fabricators 2 | . . . . . . 1 . . . . . . . 1 Prioritize 1 | . . . . . . 1 . . . . . . . . Overload 1 | . . . . . . . . . . . . . . 1 Repair Stations . | . . . . . . . . . . . . . . . Recycling Units . | . . . . . . . . . . . . . . . Scanalyzers . | . . . . . . . . . . . . . . . Garrison Access . | . . . . . . . . . . . . . . . Data Cores Recovered 1 | . 1 . . . . . . . . . . . . . Used . | . . . . . . . . . . . . . . . Hacking Detections 34 | . 8 . . . 6 2 . 8 3 . . 1 3 3 Full Trace Events 13 | . 3 . . . 4 . . 2 1 . . . 1 2 Feedback Events 3 | . 1 . . . . . . 1 1 . . . . . Corruption 3 | . 1 . . . . . . 1 1 . . . . . Feedback Blocked . | . . . . . . . . . . . . . . . Robot Schematics Acquired . | . . . . . . . . . . . . . . . Robots Built 2 | . . . . . . 2 . . . . . . . . Authchips . | . . . . . . . . . . . . . . . Time 134 | . . . . . . 134 . . . . . . . . Total Robot Build Rating 8 | . . . . . . 8 . . . . . . . . Part Schematics Acquired . | . . . . . . . . . . . . . . . Parts Built . | . . . . . . . . . . . . . . . Authchips . | . . . . . . . . . . . . . . . Time . | . . . . . . . . . . . . . . . Total Part Build Rating . | . . . . . . . . . . . . . . . Parts Repaired 1 | . 1 . . . . . . . . . . . . . Time 36 | . 36 . . . . . . . . . . . . . Parts Recycled . | . . . . . . . . . . . . . . . Recycled Matter . | . . . . . . . . . . . . . . . Retrieved Matter . | . . . . . . . . . . . . . . . Retrieved Components 7 | . . . . . 3 . . . 1 . . . 3 . Parts Scanalyzed . | . . . . . . . . . . . . . . . Part Schematics Acquired . | . . . . . . . . . . . . . . . Parts Damaged . | . . . . . . . . . . . . . . . Bothacking | -11 -10 -10 -10 -9 -8 -7 -7 -7 -6 -6 -5 -4 -4 -3 ------------ Run | Yrd Mat Min Exi Min Mat Fac Was Fac Fac DSF Fac Fac Ext Res Used RIF Installer . | . . . . . . . . . . . . . . . Robots Hacked . | . . . . . . . . . . . . . . . Non-combat . | . . . . . . . . . . . . . . . Combat . | . . . . . . . . . . . . . . . Robot Hacks Applied . | . . . . . . . . . . . . . . . Relay Couplers Released . | . . . . . . . . . . . . . . . Fabnet Peak Effective % . | . . . . . . . . . . . . . . . Robots Rewired 4 | . . . . . 1 . . . . . . . 3 . Allies Hacked . | . . . . . . . . . . . . . . . Hacks Repelled . | . . . . . . . . . . . . . . . Allies | -11 -10 -10 -10 -9 -8 -7 -7 -7 -6 -6 -5 -4 -4 -3 -------- Run | Yrd Mat Min Exi Min Mat Fac Was Fac Fac DSF Fac Fac Ext Res Total Allies 29 | . . . . . 1 2 19 . . . . . 7 . Largest Group 19 | . . . . . 1 2 19 18 . . . . 3 . Highest-Rated Group 475 | . . . . . 16 64 475 460 . . . . 130 . Highest-Rated Ally 51 | . . . . . 16 32 35 35 . . . . 51 . Total Orders . | . . . . . . . . . . . . . . . Ally Attacks 248 | . . . . . 2 . 79 141 . . . . 26 . Total Damage 5742 | . . . . . 28 . 2273 2760 . . . . 681 . Kills 36 | . . . . . . . 5 25 . . . . 6 . Allies Corrupted 1 | . . . . . . . . 1 . . . . . . Allies Melted 2 | . . . . . . . . . . . . . 2 . Intel | -11 -10 -10 -10 -9 -8 -7 -7 -7 -6 -6 -5 -4 -4 -3 ------- Run | Yrd Mat Min Exi Min Mat Fac Was Fac Fac DSF Fac Fac Ext Res Robot Analysis Total 1 | . 1 . . . . . . . . . . . . . Derelict Logs Recovered 1 | . . 1 . . . . . . . . . . . . Drone Launches . | . . . . . . . . . . . . . . . Drone Recoveries . | . . . . . . . . . . . . . . . Exploration | -11 -10 -10 -10 -9 -8 -7 -7 -7 -6 -6 -5 -4 -4 -3 ------------- Run | Yrd Mat Min Exi Min Mat Fac Was Fac Fac DSF Fac Fac Ext Res Turns Passed 8955 | . 928 448 228 385 1262 165 447 2382 217 453 175 273 996 596 Spaces Moved 5212 | 1 650 370 223 307 701 117 316 1071 126 167 78 133 506 446 Core 372 | . 4 . . . . . 105 . . 4 . . 9 250 Treads 1658 | . 2 . . . . . 74 1071 126 82 56 133 114 . Legs 470 | 1 55 . . . . . 13 . . . . . 371 30 Wheels 2548 | . 589 370 223 307 701 117 75 . . . . . . 166 Hover 98 | . . . . . . . . . . 81 17 . . . Flight 66 | . . . . . . . 49 . . . 5 . 12 . Fastest Speed 35 | 120 80 80 100 100 90 115 40 160 165 60 60 160 35 50 Average Speed 131 | 120 102 99 100 107 103 115 106 197 165 167 136 192 151 77 Slowest Speed 410 | 120 300 100 100 115 115 115 240 240 165 410 240 240 320 200 Overloaded Moves . | . . . . . . . . . . . . . . . Propulsion Burnouts . | . . . . . . . . . . . . . . . Robots Hopped 1 | . . . . . . . . . . . . . 1 . Cave-ins Triggered . | . . . . . . . . . . . . . . . Exploration Rate (%) 40 | 2 73 77 61 54 57 3 89 29 4 90 3 5 40 18 Regions Visited 14 Branch Regions 4 Pre-discovered Areas 1 | . . . 1 . . . . . . . . . . . Known Exits Taken 3 | . 1 . . . . . . . 1 . . 1 . . Unknown Exits Taken 8 | 1 . 1 1 1 1 . . 1 . . 1 . 1 . Scrap Searched 1 | . . . . 1 . . . . . . . . . . Spaces Dug 12 | . . . . . . 4 . 1 . . . . 7 . Terrain Destroyed 298 | . . 20 . 6 108 4 55 27 . 1 . . 35 42 Melee 6 | . . . . . . 4 . 1 . . . . 1 . Projectile 22 | . . . . . . . . 13 . 1 . . 5 3 AOE 270 | . . 20 . 6 108 . 55 13 . . . . 29 39 Terrain Rammed . | . . . . . . . . . . . . . . . Walls Destroyed . | . . . . . . . . . . . . . . . Machines Disabled . | . . . . . . . . . . . . . . . Actions | -11 -10 -10 -10 -9 -8 -7 -7 -7 -6 -6 -5 -4 -4 -3 --------- Run | Yrd Mat Min Exi Min Mat Fac Was Fac Fac DSF Fac Fac Ext Res Total 6719 | . 805 413 230 343 1155 139 409 1239 135 277 134 145 655 640 Wait 672 | . 51 3 . 5 355 13 41 44 1 24 27 . 11 97 Move 5197 | . 649 369 222 306 700 117 315 1070 125 166 77 132 503 446 Hop 1 | . . . . . . . . . . . . . 1 . Pick Up 70 | . 13 3 1 5 9 1 5 17 1 4 2 . 7 2 Fast Attach 109 | . 17 2 1 3 11 1 7 14 3 6 2 3 17 22 Attach 69 | . 3 1 . 4 5 1 5 5 2 6 8 3 16 10 Detach 61 | . . . 3 . 2 . 7 7 2 8 6 1 15 10 Swap 46 | . 8 9 . 5 11 . 7 3 . . 1 . 2 . Drop 85 | . 11 5 3 6 14 . 12 13 1 6 2 . 9 3 Fire 301 | . 52 21 . 9 40 . 9 45 . 41 3 6 36 39 Melee 59 | . . . . . 3 6 1 20 . 13 6 . 10 . Ram 13 | . 1 . . . . . . . . 1 . . . 11 Kick 2 | . . . . . . . . . . . . . 2 . Crush 2 | . . . . . . . . 1 . . . . 1 . Escape Stasis . | . . . . . . . . . . . . . . . Rewire 32 | . . . . . 5 . . . . 2 . . 25 . Trap . | . . . . . . . . . . . . . . . Miscellaneous . | . . . . . . . . . . . . . . . Route ------- -11/Scrapyard -10/Materials (discovered 4 exits: [*Mat x3] / *Min) -10/Mines (discovered 3 exits: [*Mat] / *Exi / Sub) -10/Exiles -9/Mines -8/Materials (discovered 2 exits: *Fac x2) -7/Factory -7/Waste -7/Factory -6/Factory -6/DSF -5/Factory -4/Factory -4/Extension -3/Research History --------- Turn | Location | Event 1 | -11/Scrapyard | Discovered new exit (range 0) 1 | -11/Scrapyard | Entered Materials 10 | -10/Materials | Identified exit to Mines 222 | -10/Materials | Discovered new exit (range 4) 300 | -10/Materials | Build established: Mutant 337 | -10/Materials | Discovered new exit (range 16) 407 | -10/Materials | Repaired Broken EM Pulse Gun 919 | -10/Materials | Discovered new exit (range 13) 929 | -10/Materials | Entered Mines 933 | -10/Mines | Core integrity fell below 50% 1018 | -10/Mines | Core integrity fell below 20% 1125 | -10/Mines | Identified exit to Subcaves 1308 | -10/Mines | Discovered new exit (range 3) 1373 | -10/Mines | Deemed a non-threat by the Exiles lab entrance 1373 | -10/Mines | Discovered new exit (range 5) 1377 | -10/Mines | Entered Exiles 1408 | -10/Exiles | Met 8R-AWN 1425 | -10/Exiles | Met EX-HEX 1452 | -10/Exiles | Met EX-BIN 1466 | -10/Exiles | Aligned with FarCom system 1467 | -10/Exiles | Given EX-Vault access code 1492 | -10/Exiles | Opened EX-Vault 1500 | -10/Exiles | Found Latent Energy Streamer 1524 | -10/Exiles | Warned to stay clear of 0b10 Research branches 1535 | -10/Exiles | Exiles lab attacked by MAIN.C 1563 | -10/Exiles | Learned location of Zion (-6) 1595 | -10/Exiles | Discovered new exit (range 10) 1605 | -10/Exiles | Left Exiles lab with Latent Energy Streamer 1605 | -10/Exiles | Entered Mines 1670 | -9/Mines | Received a Rocket Launcher from a helpful Derelict 1983 | -9/Mines | Discovered new exit (range 6) 1990 | -9/Mines | Entered Materials 1990 | -8/Materials | Evolved 4 slots: Utility x3, Weapon x1 2319 | -8/Materials | Build established: Scavenger-Skirmisher 2994 | -8/Materials | Discovered new exit (range 7) 3233 | -8/Materials | Discovered new exit (range 15) 3252 | -8/Materials | Entered Factory 3252 | -7/Factory | Evolved 2 slots: Utility x2 3353 | -7/Factory | Fabricated Y-54 Guardian? 3417 | -7/Factory | Sucked down chute 3417 | -7/Factory | Entered Waste 3429 | -7/Waste | Spotted C-40 Crusher 3437 | -7/Waste | Build established: Scavenger-Mutant 3440 | -7/Waste | Destroyed C-40 Crusher 3442 | -7/Waste | Spotted C-40 Crusher 3442 | -7/Waste | Spotted C-40 Crusher 3452 | -7/Waste | Spotted C-40 Crusher 3452 | -7/Waste | Spotted C-40 Crusher 3487 | -7/Waste | 2 allies followed down the chute 3513 | -7/Waste | Destroyed C-40 Crusher 3532 | -7/Waste | Crushed by Compactor (1 part destroyed, 1 dropped) 3535 | -7/Waste | Crushed by Compactor (1 part destroyed, 1 dropped) 3537 | -7/Waste | Crushed by Compactor (1 part destroyed, 1 dropped) 3538 | -7/Waste | Crushed by Compactor (1 part destroyed, 1 dropped) 3561 | -7/Waste | Spotted C-40 Crusher 3569 | -7/Waste | Lost 5 parts (1p1n1u2w) 3604 | -7/Waste | Warlord forces began an assault 3646 | -7/Waste | Allies destroyed C-40 Crusher 3660 | -7/Waste | Allies destroyed C-40 Crusher 3670 | -7/Waste | Found Damper Plating 3776 | -7/Waste | Discovered new exit (range 12) 3864 | -7/Waste | Entered Factory 3864 | -7/Factory | Accompanied by 18 allies 4129 | -7/Factory | Build established: Mutant 4209 | -7/Factory | Lost 4 allies 4307 | -7/Factory | Lost 4 allies 5064 | -7/Factory | First assault squad dispatched 5811 | -7/Factory | Assembled infested ambush trap array 6214 | -7/Factory | Discovered new exit (range 15) 6246 | -7/Factory | Entered another Factory area 6246 | -6/Factory | Evolved 2 slots: Power x1, Propulsion x1 6394 | -6/Factory | Identified exit to DSF 6463 | -6/Factory | Entered DSF 6491 | -6/DSF | Additional patrols routed to DSF 6544 | -6/DSF | Lost 3 parts (1p1n1u) 6630 | -6/DSF | Lost 4 parts (1p2u1w) 6817 | -6/DSF | Sterilization system engaged 6822 | -6/DSF | Lost 3 parts (1n1u1w) 6837 | -6/DSF | Ambient heat levels rising (+10) 6852 | -6/DSF | Ambient heat levels rising (+10) 6861 | -6/DSF | Found Prototype Device 6861 | -6/DSF | Identified Active Sensor Suite 6867 | -6/DSF | Ambient heat levels rising (+10) 6870 | -6/DSF | Core integrity fell below 50% 6875 | -6/DSF | Discovered new exit (range 12) 6882 | -6/DSF | Ambient heat levels rising (+10) 6897 | -6/DSF | Ambient heat levels rising (+10) 6912 | -6/DSF | Ambient heat levels rising (+10) 6916 | -6/DSF | Entered Factory 6916 | -5/Factory | Evolved 2 slots: Propulsion x1, Utility x1 7069 | -5/Factory | Discovered new exit (range 14) 7091 | -5/Factory | Entered another Factory area 7091 | -4/Factory | Evolved 2 slots: Utility x1, Weapon x1 7112 | -4/Factory | Lost 4 parts (2n1u1w) 7345 | -4/Factory | Discovered new exit (range 10) 7361 | -4/Factory | Identified exit to Extension 7364 | -4/Factory | Entered Extension 7375 | -4/Extension | Disrupted transfer network 7440 | -4/Extension | Rescued a captive Derelict 7478 | -4/Extension | Rescued a captive Derelict 7515 | -4/Extension | Found Gamma Bomb Array 7766 | -4/Extension | Rescued a captive Derelict 8138 | -4/Extension | Energy Cycler disabled 8138 | -4/Extension | Rescued a captive Derelict 8138 | -4/Extension | Rescued a captive Derelict 8138 | -4/Extension | Rescued a captive Derelict 8138 | -4/Extension | Rescued a captive Derelict 8139 | -4/Extension | Rescued a captive Derelict 8142 | -4/Extension | Rescued a captive Derelict 8143 | -4/Extension | Rescued a captive Derelict 8161 | -4/Extension | Build established: Tank 8269 | -4/Extension | Extracted ID and sensor layout for unrecognized location from A7's data core 8270 | -4/Extension | Spotted B-86 Titan 8303 | -4/Extension | Destroyed B-86 Titan 8325 | -4/Extension | System corruption reached 10% 8331 | -4/Extension | Spotted B-86 Titan 8348 | -4/Extension | Discovered new exit (range 15) 8356 | -4/Extension | Core integrity fell below 50% 8360 | -4/Extension | Entered Research 8360 | -3/Research | Evolved 2 slots: Utility x2 8390 | -3/Research | Lost 18 parts (2p6n7u3w) 8643 | -3/Research | Build established: Mutant 8702 | -3/Research | System corruption reached 10% 8705 | -3/Research | System corruption reached 30% 8797 | -3/Research | Spotted B-86 Titan 8835 | -3/Research | Lost 7 parts (1p3n2u1w) 8846 | -3/Research | Core integrity fell below 50% 8865 | -3/Research | Core integrity fell below 20% 8956 | -3/Research | Destroyed by G-67 Veteran with Plasma Rifle Last Messages --------------- 08911_ Slug penetrates Wall. 08914_ Penetrated by Slug. 08915_ System corrupted: Matter fused (-6). 08923_ Slug penetrates Wall. 08934_ System corrupted: Lgt. Antimatter Reactor rejected. 08935_ Acquired Lgt. Antimatter Reactor. 08936_ K-01 Serf collects debris. 08942_ G-67 Veteran system terminally corrupted. 08942_ Adv. Heat Sink fried. 08942_ Lgt. Antimatter Reactor fried. 08942_ K-01 Serf collects debris. 08944_ System corrupted: Com. HERF Cannon failed to cycle. 08946_ K-01 Serf collects debris. 08949_ System corrupted: Matter fused (-8). 08950_ G-67 Veteran destroyed. 08950_ K-01 Serf collects debris. 08953_ Lgt. Antimatter Reactor destroyed. 08953_ Myomer Leg destroyed. 08953_ K-01 Serf collects debris. 08955_ Hpw. Shotgun destroyed. Map ----- +----------------------------------------------------+ | ?????????????????????????????????????????????????? | | ?????????????????????????????????????????????????? | | ?????????????????????????????????????????????????? | | ????????????????##########???????????????????????? | | ???????????###### #???????????????????????? | | ???????????# # #???????????????????????? | | ???????????# # #???????????????????????? | | ???????????# # #???????????????????????? | | ???????????# + !! #???????????????????????? | | ???????????# # !! #???????????????????????? | | ???????????# # [ #???????????????????????? | | ?########### # #???????????????????????? | | ?# # # #???????????????????????? | | ?# # ##########???????????????????????? | | ?# # #????????????????????????????????? | | ?# ! " #????????????????????????????????? | | ?# # #????????????????????????????????? | | ?# # ###########??????????????????????? | | ?# # % # #??????????????????????? | | ?# # # #??????????????????????? | | ?########### "= #??????????????????????? | | ??# # [[= " "" #??????????????????????? | | ??# ; %=;% ""F"" #??????????????????????? | | ??# # [; g!""" #??????????????????????? | | ??# # [; k=%[ #??????????????????????? | | ??# ?# k%; [%g* @#??????????????????????? | | ??# * ?# ;;;########??????????????????????? | | ??# ??# " #"""T""???????????????????????? | | ??# ??# ""##""" """##????????????????????? | | ??# ???# ????????????????????? | | ??######???# [ ???????????????????? | | ???????????# % ????????????????????? | | ???????????# % % """ """ ?????????????????????? | | ???????????#![ """ """??????????????????????? | | ???????????#[ """ """ "??????????????????? | | ???????????# ! ??????????????????? | | ???????????# ??????????????????? | | ?#######???# ???????w??????????? | | ? ?# ##############BB?????????????????? | | # # #???BB?????????????????? | | # ] #??????????????????????? | | # """ #??????????????????????? | | # """ #??????????????????????? | | # """ ???????????????????????? | | # ##########?????????????? | | ? # ## #?????????????? | | ? # # ! ## #?????????????? | | ?? # ############ / #?????????????? | | ?? ?# #??????????# #?????????????? | | ?? ]??# #??????????# "" #?????????????? | +----------------------------------------------------+ Best States ------------- Heat Dissipation 103 Coolant Potential 50 Energy Generation 34 Energy Capacity 690 Matter Stores 500 Matter Capacity 500 Sight Range 16 Robot Scan Range 15 Terrain Scan Density 110 ECM Strength 2 Armor Coverage 3200 Resistance: EM 90 Power Shielding 66 Propulsion Shielding 66 Utility Shielding 90 Weapon Shielding 66 Phase Shifting 5 Evasion (%) 62 Targeting Accuracy 8 Target Analysis 7 Core Analysis 9 Recoil Reduction 3 Salvage Targeting 2 Offensive Hacking 20 Defensive Hacking 10 Item Schematics ----------------- None Robot Schematics ------------------ None Fabricated ------------ Y-54 Guardian | x2 | -7/Factory | Preloaded Alien Tech Used ----------------- None Achievements -------------- None Challenges ------------ None Game ------ Seed FrostLightAnalyzer Manual? 0 Play Time 00:56:02 Cumulative 736.0 hours Start 2024.05.18 @ 12:07:56 End 2024.05.22 @ 22:55:59 Sessions 3 Manual Loads 0 Difficulty Rogue Special Mode None Game No. 800 Rogue 525 Adventurer 123 Explorer 152 Win Type - Total 26 Types 20/0/4/1/0/0/0/1/0 Lore% 83 Gallery% 92 Achievement% 76 Wizard Run 0 Options --------- Layout 0 ASCII 0 Keyboard 1 Movement Numpad Keybinds 0 Fullscreen 2 Font 18/Terminus Map View 76x50 Zoom Use 0% Tactical HUD 1 Map Filters NONE Filters NONE Steam 1 RUN: 755528bd-fd98-4b22-8dbd-d5f868e3f397